{"text_format":"3","workbook":"xlsx","n_sheets":5,"sheets":["BOQ 1","BOQ 2","BOQ3","BOQ4","BOQ 5"],"not_rendered":{"external_links":3,"defined_names":47},"read":"whole","date_system":"1900"}

{"sheet":"BOQ 1","index":0,"n_rows":56,"n_cols":6,"rows_kept":56,"merged":[[0,0,0,5]]}
[]
["ITEM NO","DESCRIPTION","UNIT","ANNUAL QUANTITY","RATE","AMOUNT"]
[]
[]
[null,"BILL 1"]
[]
[null,"ADMINISTRATION"]
[]
[null,"NOTE: Tenderers are advised to study the Model Preambles for Trades "]
[null,"before pricing this bill"]
[]
[null,"NOTE: Unless otherwise stated herein, all rates should include "]
[null,"compensation for costs to execute the works whatever quantity is required"]
[null,"and should provide for establishment, preliminary and general costs, and "]
[null,"all other costs associated with the execution and supervision."]
[]
[null,"The Client reserves the right to negotiate mutually agreed discounts on"]
[null,"tendered rates for large quantities "]
[]
[null,"PROVISIONAL ADMINISTRATIVE COSTS"]
[]
[]
[1,"Occupational Health and Safety Compliance - prepare & maintain a compliant  safety file at all times, comply with all leglislative and regulated requirements including attending to internal and external audits","month",{"v":12,"d":"12.00"},"R","R"]
[]
[2,"Occupational Health and Safety Compliance - Provide for propper PPE for all works","month",{"v":12,"d":"12.00"},"R","R"]
[]
[3,"Insurance Requirments","month",{"v":12,"d":"12.00"},"R","R"]
[]
[]
[]
[null,"MILEAGE"]
[]
[4,"Mileage for on site travel and scheduled procurments/tasks required by ACSA","km",{"$f":"2000*12","v":{"v":24000,"d":"24000.00"}},"R","R"]
[null,"Note: Excludes travel to and from site for preventative maintenance works and planned works."]
[null,"Note: Excludes travel to and from site for night works"]
[null,"Note: Excludes travel to and from site for call outs"]
{"$rows_empty":19}
[null,"BILL 1 - TOTAL CARRIED TO ANNUAL SUMMARY",{"$nulls":3},"R"]

{"sheet":"BOQ 2","index":1,"n_rows":112,"n_cols":6,"rows_kept":112,"merged":[[0,0,0,5]]}
[]
["ITEM NO","DESCRIPTION","UNIT","ANNUAL QUANTITY","RATE","AMOUNT"]
[]
[]
[null,"BILL 2"]
[]
[null,"PROVISIONAL CALL OUTS & LABOUR SCHEDULE (PROVISIONAL)"]
[]
[null,"NOTE: Tenderers are advised to study the Model Preambles for Trades "]
[null,"before pricing this bill"]
[]
[null,"NOTE: Unless otherwise stated herein, all rates should include "]
[null,"compensation for costs to execute the works whatever quantity is required"]
[null,"and should provide for establishment, preliminary and general costs, and "]
[null,"all other costs associated with the execution and supervision."]
[]
[null,"The Client reserves the right to negotiate mutually agreed discounts on"]
[null,"tendered rates for large quantities "]
[]
[null,"CALL OUTS"]
[]
[null,"Emergency Call Outs: Emergency - 45 minute response time from time of call at any time for the duration of the contract. Call outs only apply when the contractor is not scheduled to be on site."]
[null,"Urgent Call Outs: Urgent - 24 Hour response time  from time of call at any time for the duration of the contract. Call outs only apply when the contractor is not scheduled to be on site."]
[]
[]
[1,"Emergency Call Outs","No",{"v":12,"d":"12.00"},"R","R"]
[]
[2,"Urgent Call Outs","No",{"v":6,"d":"6.00"},"R","R"]
[]
[]
[]
[null,"LABOUR SCHEDULE"]
[]
[null,"Operating Times"]
[null,"Normal Hours: Regarded as between 06:00am and 18:00pm weekdays"]
[null,"After Hours: Regarded as between 06:00pm and 06:00am weekdays"]
[null,"After Hours: Regarded as between 06:00am and 23:59pm saturdays"]
[null,"Sundays & Public Holidays: Regarded as Between 0:00am and 23:59pm on Sundays and Public Holidays"]
[null,"Night Work: Where work is located in operational areas / impacted by passenger traffic, then work will only be permitted to commence after the last operational flight and once the affected areas have been vacated by passengers. The time of the last flight will vary each day."]
[]
[null,"Contract Manager / Supervisor"]
[3,"Normal Hours","hrs",{"v":8,"d":"8.00"},"R","R"]
[4,"After Hours","hrs",{"$f":"((8*2))*12","v":{"v":192,"d":"192.00"}},"R","R"]
[5,"Sundays & Public Holidays","hrs",{"$f":"((8*1))*6","v":{"v":48,"d":"48.00"}},"R","R"]
[]
[null,"Handyman"]
[6,"Normal Hours","hrs",{"v":8,"d":"8.00"},"R","R"]
[7,"After Hours","hrs",{"$f":"((8*1))*12","v":{"v":96,"d":"96.00"}},"R","R"]
[8,"Sundays & Public Holidays","hrs",{"$f":"((8*1))*6","v":{"v":48,"d":"48.00"}},"R","R"]
[]
[]
[]
[]
[null,"General Assistant"]
[9,"Normal Hours","hrs",{"$f":"((8*6))*12","v":{"v":576,"d":"576.00"}},"R","R"]
[10,"After Hours","hrs",{"$f":"((8*4))*12","v":{"v":384,"d":"384.00"}},"R","R"]
[11,"Sundays & Public Holidays","hrs",{"$f":"((8*1))*6","v":{"v":48,"d":"48.00"}},"R","R"]
[]
[null,"Brick Layer"]
[12,"Normal Hours","hrs",{"$f":"8*12","v":{"v":96,"d":"96.00"}},"R","R"]
[13,"After Hours","hrs",{"v":1,"d":"1.00"},"R","R"]
[14,"Sundays & Public Holidays","hrs",{"v":1,"d":"1.00"},"R","R"]
[]
[null,"Carpenter"]
[15,"Normal Hours","hrs",{"$f":"8*12","v":{"v":96,"d":"96.00"}},"R","R"]
[16,"After Hours","hrs",{"v":1,"d":"1.00"},"R","R"]
[17,"Sundays & Public Holidays","hrs",{"v":1,"d":"1.00"},"R","R"]
[]
[null,"Tiler"]
[18,"Normal Hours","hrs",{"$f":"8*12","v":{"v":96,"d":"96.00"}},"R","R"]
[19,"After Hours","hrs",{"v":1,"d":"1.00"},"R","R"]
[20,"Sundays & Public Holidays","hrs",{"v":1,"d":"1.00"},"R","R"]
[]
[]
[]
[null,"Plasterer"]
[21,"Normal Hours","hrs",{"$f":"8*12","v":{"v":96,"d":"96.00"}},"R","R"]
[22,"After Hours","hrs",{"v":1,"d":"1.00"},"R","R"]
[23,"Sundays & Public Holidays","hrs",{"v":1,"d":"1.00"},"R","R"]
[]
[null,"Painter"]
[24,"Normal Hours","hrs",{"$f":"8*12","v":{"v":96,"d":"96.00"}},"R","R"]
[25,"After Hours","hrs",{"v":1,"d":"1.00"},"R","R"]
[26,"Sundays & Public Holidays","hrs",{"v":1,"d":"1.00"},"R","R"]
[]
[null,"Welder "]
[27,"Normal Hours","hrs",{"$f":"24*12","v":{"v":288,"d":"288.00"}},"R","R"]
[28,"After Hours","hrs",{"$f":"16*12","v":{"v":192,"d":"192.00"}},"R","R"]
[29,"Sundays & Public Holidays","hrs",{"v":8,"d":"8.00"},"R","R"]
{"$rows_empty":22}
[null,"BILL 2 - TOTAL CARRIED TO ANNUAL SUMMARY",{"$nulls":3},"R"]

{"sheet":"BOQ3","index":2,"n_rows":50,"n_cols":9,"rows_kept":50,"merged":[[0,0,0,5]]}
[]
["ITEM NO","DESCRIPTION","UNIT","ANNUAL QUANTITY","RATE","AMOUNT"]
[]
[]
[null,"BILL 3"]
[]
[null,"PREVENTATIVE MAINTENANCE SCHEDULES"]
[]
[null,"NOTE: Tenderers are advised to study the Model Preambles for Trades "]
[null,"before pricing this bill"]
[]
[null,"NOTE: Unless otherwise stated herein, all rates should include "]
[null,"compensation for costs to execute the works whatever quantity is required"]
[null,"and should provide for establishment, preliminary and general costs, and "]
[null,"all other costs associated with the execution and supervision."]
[]
[null,"The Client reserves the right to negotiate mutually agreed discounts on"]
[null,"tendered rates for large quantities "]
[]
[]
[]
[null,"PROVISIONAL PREVENTATIVE MAINTENANCE SCHEDULES"]
[]
[null,"Contractor is to refer to the attached scope of works for detailed requirements for executing the preventative maintenance schedules."]
[]
[null,"Carry out weekly inspection & complete required maintenance tasks for schedules issued on a weekly basis or as matters arise"]
[null,"Carry out monthly inspection & complete required maintenance tasks for schedules issued on a monthly basis."]
[null,"Carry out quarterly inspection & complete required maintenance tasks for schedules issued on a quarterly basis."]
[null,"Carry out all handy man related work (Refer to attached specification regarding inclusions, note that for any matter or item that may arise which is not schedueld in the boq, than that item of work will be executed by the on site handy man on duty.)"]
[]
[1,"Day Works ( 1 x Supervisor & 1 x Handy Man & 1 x General Assistant - 5 Times per week - Mon - Fri - 08:00am 16:30 - 8 hour shift)","week",{"v":52,"d":"52.00"},"R","R",null,null,{"$f":"45000*12","v":540000}]
[]
[2,"Night Works ( 1 x Handy Man & 1 General Assistant - 5 Times per week - Mon - Fri - 19:00pm - 05:00am - 9 hour shift)","week",{"v":52,"d":"52.00"},"R","R"]
[]
[]
[null,"Note: Average of 4,35 weeks per month, A week in this section is regarded as the period between Monday & Friday. Pro-rata calculation will apply where a full week has not been completed in any given month"]
{"$rows_empty":13}
[null,"BILL 3 - TOTAL CARRIED TO ANNUAL SUMMARY",{"$nulls":3},"R"]

{"sheet":"BOQ4","index":3,"n_rows":319,"n_cols":6,"rows_kept":319,"merged":[[0,0,0,5]]}
[]
["ITEM NO","DESCRIPTION","UNIT","ANNUAL QUANTITY","RATE","AMOUNT"]
[]
[]
[null,"BILL 4"]
[]
[null,"PROVISIONAL - COMMON  MAINTENANCE WORKS"]
[]
[null,"NOTE: Tenderers are advised to study the Model Preambles for Trades "]
[null,"before pricing this bill"]
[]
[null,"NOTE: Unless otherwise stated herein, all rates should include "]
[null,"compensation for costs to execute the works whatever quantity is required"]
[null,"and should provide for establishment, preliminary and general costs, and "]
[null,"all other costs associated with the execution and supervision."]
[]
[null,"The Client reserves the right to negotiate mutually agreed discounts on"]
[null,"tendered rates for large quantities "]
[]
[null,"WATERPROOFING"]
[]
[1,"Identify and repair leaks on metal roof sheeting in patches.","m2",{"v":450,"d":"450.00"},"R","R"]
[2,"Ditto for after hours work.","m2",{"v":150,"d":"150.00"},"R","R"]
[null,"Materials paid for on a proven cost basis. (3rd party procurment)"]
[]
[null,"ROOF COVERINGS ETC"]
[]
[3,"Clearing of gutters free from (Stones, sand, debris, seeds, vegetation, plastic, paper etc).","m",{"v":500,"d":"500.00"},"R","R"]
[4,"Ditto for after hours work.","m",{"v":150,"d":"150.00"},"R","R"]
[]
[5,"Unblocking and flushing of down pipes up to 200mm diameter including cleaning out debris flushed into the storm water system. Down pipe lengths vary and will be up to 25m in length per down pipe","no",{"v":15,"d":"15.00"},"R","R"]
[6,"Ditto for after hours work.","no",{"v":25,"d":"25.00"},"R","R"]
[]
[7,"Repairs to damaged gutters not exceeding 500mm in width / diameter","m",{"v":50,"d":"50.00"},"R","R"]
[8,"Ditto for after hours work.","m",{"v":25,"d":"25.00"},"R","R"]
[null,"Materials paid for on a proven cost basis. (3rd party procurment)"]
[]
[9,"Repairs to damaged down pipes in varying diameters","m",{"v":100,"d":"100.00"},"R","R"]
[10,"Ditto for after hours work.","m",{"v":25,"d":"25.00"},"R","R"]
[null,"Materials paid for on a proven cost basis. (3rd party procurment)"]
[]
[null,"CARPENTRY & JOINERY"]
[]
[11,"Supply and install new timber skirting not exceeding 150mm width - Plugged or glued to walls","m",{"v":50,"d":"50.00"},"R","R"]
[12,"Ditto for after hours work.","m",{"v":30,"d":"30.00"},"R","R"]
[null,"Materials paid for on a proven cost basis. (3rd party procurment)"]
[]
[13,"Fabricate, supply and install timber cills","m2",{"v":100,"d":"100.00"},"R","R"]
[14,"Ditto for after hours work.","m2",{"v":10,"d":"10.00"},"R","R"]
[null,"Materials paid for on a proven cost basis. (3rd party procurment)"]
[null,"repair to passenger seat footing","no",{"v":40,"d":"40.00"}]
[]
[null,"Ceiling repairs","m2",{"v":1500,"d":"1500.00"},"R","R"]
[]
[]
[]
[]
[]
[null,"METAL WORK"]
[]
[15,"Install new / Refix wall and floor trims / skirtings / stair nosings / non - slip floor treads","m",{"v":30,"d":"30.00"},"R","R"]
[16,"Ditto for after hours work.","m",{"v":20,"d":"20.00"},"R","R"]
[null,"Materials paid for on a proven cost basis. (3rd party procurment)"]
[]
[17,"Refix / Realign steel trasnformer/substation rooom door (Single door)","no",{"v":4,"d":"4.00"},"R","R"]
[18,"Ditto for after hours work.","no",{"v":1,"d":"1.00"},"R","R"]
[]
[19,"Refix / Realign steel trasnformer/substation rooom door (Double door)","no",{"v":4,"d":"4.00"},"R","R"]
[20,"Ditto for after hours work.","no",{"v":1,"d":"1.00"},"R","R"]
[]
[21,"Supply and install hot dipped galvanized mild steel / Stainless Steel / Plastic chain with required fixings","m",{"v":150,"d":"150.00"},"R","R"]
[22,"Ditto for after hours work.","m",{"v":50,"d":"50.00"},"R","R"]
[null,"Materials paid for on a proven cost basis. (3rd party procurment)"]
[]
[null,"TILING"]
[]
[null,"NOTE: The tiles required will be retrieved from ACSA storage on site or will be purchased through third party procurment."]
[null,"NOTE: Tiles retrieved from ACSA storage will be issued to the contractor for installation. The contractor must not include the cost of supplying the tile in the tendered rates."]
[null,"Materials paid for on a proven cost basis. (3rd party procurment)"]
[]
[null,"Floors"]
[]
[23,"Replace loose or damaged ceramic tiles in patches  not exceeding 5 m2 per location by carefully removing damaged tiling and dispose. Remove all residual tile adhesive on floor and prepare the floors to receive replacement tiles and fix replacement tiles.","m2",{"v":500,"d":"500.00"},"R","R"]
[24,"Ditto for after hours work.","m2",{"v":240,"d":"240.00"},"R","R"]
[null,"Materials paid for on a proven cost basis. (3rd party procurment)"]
[]
[25,"Replace loose or damaged poercelain tiles in patches  not exceeding 5 m2 per location by carefully removing damaged tiling and dispose. Remove all residual tile adhesive on floor and prepare the floors to receive replacement tiles and fix replacement tiles.","m2",{"v":25,"d":"25.00"},"R","R"]
[26,"Ditto for after hours work.","m2",{"v":25,"d":"25.00"},"R","R"]
[null,"Materials paid for on a proven cost basis. (3rd party procurment)"]
[]
[null,"Walls"]
[]
[27,"Replace loose or damaged ceramic tiles in patches  not exceeding 5 m2 per location by carefully removing damaged tiling and dispose. Remove all residual tile adhesive on walls and prepare the walls to receive replacement tiles and fix replacement tiles.","m2",{"v":250,"d":"250.00"},"R","R"]
[28,"Ditto for after hours work.","m2",{"v":30,"d":"30.00"},"R","R"]
[null,"Materials paid for on a proven cost basis. (3rd party procurment)"]
[]
[29,"Replace loose or damaged porcelain tiles in patches  not exceeding 5 m2 per location by carefully removing damaged tiling and dispose. Remove all residual tile adhesive on walls and prepare the walls to receive replacement tiles and fix replacement tiles.","m2",{"v":25,"d":"25.00"},"R","R"]
[30,"Ditto for after hours work.","m2",{"v":10,"d":"10.00"},"R","R"]
[null,"Materials paid for on a proven cost basis. (3rd party procurment)"]
[]
[31,"Clean and remove old and flaking grout and replace with new to match existing","m2",{"v":299,"d":"299.00"},"R","R"]
[32,"Ditto for after hours work.","m2",{"v":202,"d":"202.00"},"R","R"]
[null,"Materials paid for on a proven cost basis. (3rd party procurment)"]
[]
[null,"PAINTWORK"]
[]
[null,"NOTE: Tenderers are advised to study the Model Preambles for Trades "]
[null,"before pricing this bill"]
[]
[null,"NOTE: Unless otherwise stated herein, all rates should include "]
[null,"compensation for costs to execute the works whatever quantity is required"]
[null,"and should provide for establishment, preliminary and general costs, and "]
[null,"all other costs associated with the execution and supervision."]
[]
[null,"NOTE: Establishment includes all necessary sundries which includes but is not limited to: Brushes, rollers, extensions, ladders, scrapers, sand paper, spot sheets, masking tape etc"]
[]
[null,"NOTE: All paint products utilised must be SABS/SANS approved."]
[null,"All paint products utilised must be suitable for use in commercial/industrial applications. Acceptable products include proffesional or trade ranges from paint manufactureres. All products utilised  must be suited to the application in which it will be used. Paint utilised must perform in accordance with applicable and relevant SANS codes"]
[]
[null,"The client reserves the right to reject paint coatings that perform poorly / fail due to inferior quality."]
[]
[null,"The Client reserves the right to negotiate mutually agreed discounts on"]
[null,"tendered rates for large quantities "]
[]
[null,"PREPARATORY WORK TO EXISTING WORK"]
[]
[null,"Previously painted  plastered surfaces"]
[]
[null,"Surfaces shall be thoroughly washed down and allowed to dry completely"]
[null,"before any paint is applied. Blistered or peeling paint shall be completely"]
[null,"removed and cracks shall be opened and filled with a suitable filler and"]
[null,"finished smooth"]
[]
[null,"Previously painted metal surfaces"]
[]
[null,"Surfaces shall be thoroughly rubbed and cleaned down. Blistered or "]
[null,"peeling paint shall be completely removed down to bare metal"]
[]
[null,"Previously painted wood surfaces"]
[]
[null,"Surfaces shall be thoroughly cleaned down. Blistered or peeling paint"]
[null,"shall be completely removed and cracks and crevices shall be primed, "]
[null,"filled with suitable filler and finished smooth "]
[]
[null,"PAINTWORK, ETC TO PREVIOUSLY PAINTED SURFACES"]
[]
[33,"On internal walls","m2",{"$f":"75*12","v":{"v":900,"d":"900.00"}},"R","R"]
[34,"Ditto for after hours work.","m2",{"$f":"150*12","v":{"v":1800,"d":"1800.00"}},"R","R"]
[null,"Materials paid for on a proven cost basis. (3rd party procurment)"]
[]
[]
[]
[35,"On external walls","m2",{"$f":"200*12","v":{"v":2400,"d":"2400.00"}},"R","R"]
[36,"Ditto for after hours work.","m2",{"v":500,"d":"500.00"},"R","R"]
[null,"Materials paid for on a proven cost basis. (3rd party procurment)"]
[]
[37,"On ceilings and beams","m2",{"v":400,"d":"400.00"},"R","R"]
[38,"Ditto for after hours work.","m2",{"$f":"100*12","v":{"v":1200,"d":"1200.00"}},"R","R"]
[null,"Materials paid for on a proven cost basis. (3rd party procurment)"]
[]
[39,"On partitions","m2",{"v":250,"d":"250.00"},"R","R"]
[40,"Ditto for after hours work.","m2",{"v":200,"d":"200.00"},"R","R"]
[null,"Materials paid for on a proven cost basis. (3rd party procurment)"]
[]
[41,"On narrow widths not exceeding 300mm wide","m2",{"v":150,"d":"150.00"},"R","R"]
[42,"Ditto for after hours work.","m2",{"v":50,"d":"50.00"},"R","R"]
[null,"Materials paid for on a proven cost basis. (3rd party procurment)"]
[]
[null,"ON METAL"]
[]
[null,"Spot prime bare metal surfaces with zinc chromate primer & apply"]
[null,"one undercoat & two coats alkyd paint on previously painted steel"]
[]
[43,"On metal surfaces (doors, door frames, windows, windows with buglar bars, palisade fencing, steel barriers, balustrades, gates, grilles, burglar screens, gutters, down pipes, roof sheets, cladding sheets etc)","m2",{"v":70,"d":"70.00"},"R","R"]
[44,"Ditto for after hours work.","m2",{"v":70,"d":"70.00"},"R","R"]
[null,"Materials paid for on a proven cost basis. (3rd party procurment)"]
[]
[45,"On metal surfaces in narrow width not exceeding 300mm wide (doors, door frames, windows, windows with buglar bars, palisade fencing, steel barriers, balustrades, gates, grilles, burglar screens, gutters, down pipes, roof sheets, cladding sheets etc)","m2",{"v":70,"d":"70.00"},"R","R"]
[46,"Ditto for after hours work.","m2",{"v":70,"d":"70.00"},"R","R"]
[null,"Materials paid for on a proven cost basis. (3rd party procurment)"]
[]
[null,"ON WOOD"]
[]
[null,"One coat alkyd enamel, paint on previously painted surfaces "]
[]
[47,"On boarded panelling, boarded ceilings, doors, door frames, skirtings, cills","m2",{"v":40,"d":"40.00"},"R","R"]
[48,"Ditto for after hours work.","m2",{"v":40,"d":"40.00"},"R","R"]
[null,"Materials paid for on a proven cost basis. (3rd party procurment)"]
[]
[null,"Three coats Matt varnish on previously varnished surfaces"]
[]
[49,"On doors and frames"," m2",{"v":20,"d":"20.00"},"R","R"]
[50,"Ditto  for after hours work.","m2",{"v":20,"d":"20.00"},"R","R"]
[null,"Materials paid for on a proven cost basis. (3rd party procurment)"]
[]
[null,"ON FLOORS"]
[]
[51,"Prepare floors, apply one undercoat and two final coats  epoxy coating to floors ","m2",{"v":40,"d":"40.00"},"R","R"]
[52,"Ditto for after hours work.","m2",{"v":20,"d":"20.00"},"R","R"]
[null,"Materials paid for on a proven cost basis. (3rd party procurment)"]
[]
[null,"ROAD MARKING"]
[]
[53,"100mm white line including broken lines","m",{"v":1,"d":"1.00"},"R","R"]
[54,"Ditto for after hours work.","m",{"v":1,"d":"1.00"},"R","R"]
[null,"Materials paid for on a proven cost basis. (3rd party procurment)"]
[]
[55,"100mm yellow line including broken lines ","m",{"v":1,"d":"1.00"},"R","R"]
[56,"Ditto for after hours work.","m",{"v":1,"d":"1.00"},"R","R"]
[null,"Materials paid for on a proven cost basis. (3rd party procurment)"]
[]
[57,"200mm stop lines","m",{"v":1,"d":"1.00"},"R","R"]
[58,"Ditto for after hours work.","m",{"v":1,"d":"1.00"},"R","R"]
[null,"Materials paid for on a proven cost basis. (3rd party procurment)"]
[]
[59,"Pedestrian crossing","m2",{"v":1,"d":"1.00"},"R","R"]
[60,"Ditto for after hours work.","m2",{"v":1,"d":"1.00"},"R","R"]
[null,"Materials paid for on a proven cost basis. (3rd party procurment)"]
[]
[61,"100mm red line","m",{"v":1,"d":"1.00"},"R","R"]
[62,"Ditto for after hours work.","m",{"v":1,"d":"1.00"},"R","R"]
[null,"Materials paid for on a proven cost basis. (3rd party procurment)"]
[]
[63,"150mm red line","m",{"v":1,"d":"1.00"},"R","R"]
[64,"Ditto for after hours work.","m",{"v":1,"d":"1.00"},"R","R"]
[null,"Materials paid for on a proven cost basis. (3rd party procurment)"]
[]
[65,"Single headed arrows","m2",{"v":1,"d":"1.00"},"R","R"]
[66,"Ditto for after hours work.","m2",{"v":1,"d":"1.00"},"R","R"]
[null,"Materials paid for on a proven cost basis. (3rd party procurment)"]
[]
[67,"Double headed arrows","m2",{"v":1,"d":"1.00"},"R","R"]
[68,"Ditto for after hours work.","m2",{"v":1,"d":"1.00"},"R","R"]
[null,"Materials paid for on a proven cost basis. (3rd party procurment)"]
[]
[69,"Yield signs","m2",{"v":1,"d":"1.00"},"R","R"]
[70,"Ditto for after hours work.","m2",{"v":1,"d":"1.00"},"R","R"]
[null,"Materials paid for on a proven cost basis. (3rd party procurment)"]
[]
[71,"STOP signs ","m2",{"v":1,"d":"1.00"},"R","R"]
[72,"Ditto for after hours work.","m2",{"v":1,"d":"1.00"},"R","R"]
[null,"Materials paid for on a proven cost basis. (3rd party procurment)"]
[]
[73,"No entry signs","m2",{"v":1,"d":"1.00"},"R","R"]
[74,"Ditto for after hours work.","m2",{"v":1,"d":"1.00"},"R","R"]
[null,"Materials paid for on a proven cost basis. (3rd party procurment)"]
[]
[75,"Paraplegic signs","m2",{"v":1,"d":"1.00"},"R","R"]
[76,"Ditto for after hours work.","m2",{"v":1,"d":"1.00"},"R","R"]
[null,"Materials paid for on a proven cost basis. (3rd party procurment)"]
[]
[null,"EXTERNAL WORKS"]
[]
[77,"Supply and install paving in patches to match existing","m2",{"v":1900,"d":"1900.00"},"R","R"]
[78,"Ditto for after hours work.","m2",{"v":1000,"d":"1000.00"},"R","R"]
[null,"Materials paid for on a proven cost basis. (3rd party procurment)"]
[]
[79,"Supply and install cast insitu concrete paving with decorative stone finish to match existing. ","m2",{"v":200,"d":"200.00"},"R","R"]
[80,"Ditto for after hours work.","m2",{"v":250,"d":"250.00"},"R","R"]
[null,"Materials paid for on a proven cost basis. (3rd party procurment)"]
[]
[]
[]
[]
[]
[null,"SIGNAGE"]
[]
[81,"Replace fixings to existing signage, realign and secure signs up to 3.0m high (Excludes billboards)","no",{"v":150,"d":"150.00"},"R","R"]
[82,"Ditto for after hours work.","no",{"v":91,"d":"91.00"},"R","R"]
[null,"Materials paid for on a proven cost basis. (3rd party procurment)"]
[]
[83,"Replace perspex, vinyl, chromadeck sign face for existing signage, replace fixings, realign and secure signs up to 3.0m high (Excludes billboards)","m2",{"v":150,"d":"150.00"},"R","R"]
[84,"Ditto for after hours work.","m2",{"v":100,"d":"100.00"},"R","R"]
[null,"Materials paid for on a proven cost basis. (3rd party procurment)"]
[]
[null,"Note: Where signs are located above 3m high  and cannot be accessed safely by ladder then a suitable height access solution will be required. Height access solution to be paid for through 3rd party procurement, however rates for items 82,83,84 will still be applicable"]
[]
[null,"CARPORTS / SHADEPORTS"]
[]
[null,"Single Bay Carports / Shadeports"]
[]
[85,"Supply and install fire rated shade port covering to match existing. ","no",{"v":100,"d":"100.00"},"R","R"]
[null,"Materials paid for on a proven cost basis. (3rd party procurement)"]
[]
[null,"Double Bay Carports / Shadeports"]
[]
[86,"Supply and install fire rated shade port covering to match existing.","no",{"v":20,"d":"20.00"},"R","R"]
[null,"Materials paid for on a proven cost basis. (3rd party procurement)"]
[]
[null,"Tripple Bay Carports / Shadeports"]
[]
[87,"Supply and install fire rated shade port covering to match existing. ","no",{"v":20,"d":"20.00"},"R","R"]
[null,"Materials paid for on a proven cost basis. (3rd party procurement)"]
[]
[]
[null,"Plumbing Works"]
[]
[null,"Jetting of sewer lines as a response to blockage","m",{"v":500,"d":"500.00"},"R","R"]
[null,"Chemically treat sewer lines as a response to blockage","m",{"v":250,"d":"250.00"},"R","R"]
[null,"All Plumbing on Ablution facilities including spares and repairs","no",{"v":50,"d":"50.00"},"R","R"]
{"$rows_empty":18}
[null,"BILL 4 - TOTAL CARRIED TO ANNUAL SUMMARY",{"$nulls":3},"R"]

{"sheet":"BOQ 5","index":4,"n_rows":1098,"n_cols":9,"rows_kept":1098}
["ITEM NO","DESCRIPTION","UNIT","ANNUAL QUANTITY","RATE","AMOUNT"]
[]
[]
[null,"BILL 5"]
[]
[null,"SPECIALISED WORKS / AD HOC WORKS"]
[]
[null,"NOTE: Within this section of the price schedule there is no distinction made for differences in prices for works in \"Normal Hours\" and works at \"After Hours\". Bidders are to note that rates tendered in this section will be fixed regardless of the time of day that work is executed. Working times will always be determined by the operational requirements that govern a particular work area."]
[]
[null,"NOTE: Tenderers are advised to study the Model Preambles for Trades "]
[null,"before pricing this bill"]
[]
[null,"NOTE: Unless otherwise stated herein, all rates should include "]
[null,"compensation for costs to execute the works whatever quantity is required"]
[null,"and should provide for establishment, preliminary and general costs, and "]
[null,"all other costs associated with the execution and supervision."]
[]
[null,"The Client reserves the right to negotiate mutually agreed discounts on"]
[null,"tendered rates for large quantities "]
[]
[null,"ALTERATIONS"]
[]
[null,"TEMPORARY BARRIERS, SCREENS, ETC"]
[]
[null,"Temporary barriers, screens, etc including removal  "]
[null,"on completion"]
[]
[1,"Drywall barricade not exceding 2.4m high of galvanised steel channel section rails and studs covered on one side with 12,7mm gypsum plasterboard and finished with two coats interior quality PVA emulsion paint, including corners, ends, etc","m",{"v":1,"d":"1.00"},"R","R"]
[null,"Materials paid for on a proven cost basis. (3rd party procurement)"]
[]
[2,"Extra over preceding item for hollow core single door 813 x 2032mm high, including steel frame, two-lever mortice lock, primer and two coats paint","No",{"v":1,"d":"1.00"},"R","R"]
[null,"Materials paid for on a proven cost basis. (3rd party procurement)"]
[]
[3,"Hoarding between concrete floor and ceiling formed of suitable timber framing with 22mm thick shutter board","m2",{"v":1,"d":"1.00"},"R","R"]
[null,"Materials paid for on a proven cost basis. (3rd party procurement)"]
[]
[4,"Metal sheeting hoarding 2m high fixed to steel posts at equal centres including paint to external face of sheets and posts.","m2",{"v":1,"d":"1.00"},"R","R"]
[null,"Materials paid for on a proven cost basis. (3rd party procurement)"]
[]
[5,"Temporary 12mm shutter board protection lining to walls, floors and ceilings including removing after completion and making good to walls, floors and ceilings","m2",{"v":1,"d":"1.00"},"R","R"]
[null,"Materials paid for on a proven cost basis. (3rd party procurement)"]
{"$rows_empty":10}
[null,"REMOVAL OF EXISTING WORK"]
[]
[null,"Breaking up and removing mass concrete including reinforcing and "]
[null,"carting to approved disposal area within the airport."]
[]
[6,"Stairs with landings, waist, treads, risers, ramps, surface beds, strip footing, reinforced concrete etc","m3",{"v":1,"d":"1.00"},"R","R"]
[]
[null,"Breaking down and removing existing concrete work including "]
[null,"all steel reinforcing, steel corners bolts etc and carting to approved disposal area within the airport."]
[]
[7,"Concrete Columns, beams and slabs not exceeding 3m high","m3",{"v":1,"d":"1.00"},"R","R"]
[]
[8,"Manholes, bases, strip footings etc not exceeding 1.5m deep","m3",{"v":1,"d":"1.00"},"R","R"]
[]
[9,"Surface beds not exceeding 100mm thick","m3",{"v":1,"d":"1.00"},"R","R"]
[]
[10,"Surface beds exceeding 100mm thick and not exceeding 150mm thick","m3",{"v":1,"d":"1.00"},"R","R"]
[]
[null,"Breaking down and removing brickwork including  all steel door "]
[null,"frames, window frames etc and carting to approved disposal area within the airport."]
[]
[11,"Half brick wall","m2",{"v":1,"d":"1.00"},"R","R"]
[]
[12,"One brick wall","m2",{"v":1,"d":"1.00"},"R","R"]
[]
[null,"Taking up and removing vinyl floor coverings, tiles, carpets, etc "]
[]
[13,"Ceramic / Porcelain / Marble tiles to floor including preparing floor for ","m2",{"v":1,"d":"1.00"},"R","R"]
[null,"new floor covering"]
[]
[14,"Vinyl / plastic / carpet floor covering including preparing floors for new floor coverings ","m2",{"v":1,"d":"1.00"},"R","R"]
[]
[null,"Hacking up and removing off coverings to walls, columns, partition"]
[null,"walls etc. including preparing surfaces for new finishes"]
[]
[15,"Tiles from walls, columns","m2",{"v":1,"d":"1.00"},"R","R"]
[]
[16,"Wall paper covering from walls, columns etc.","m2",{"v":1,"d":"1.00"},"R","R"]
[]
[null,"Taking out / off and removing sundry metalwork"]
[]
[17,"Stainless steel / mild steel barrier not exceeding  150mm diameter including vertical supports and making good to concrete to recieve new finish","m",{"v":1,"d":"1.00"},"R","R"]
[]
[null,"Taking out and removing doors, windows, etc, including thresholds, sills, etc (building up openings and making good finishes elsewhere)"]
[]
[18,"Timber single door and steel frame not exceeding 2,5m²","No",{"v":1,"d":"1.00"},"R","R"]
[]
[19,"Timber double door and steel frame exceeding 2,5m² and not exceeding 5m²","No",{"v":1,"d":"1.00"},"R","R"]
[]
[20,"Timber double door and steel frame exceeding 5m² and not exceeding 7.5m²","No",{"v":1,"d":"1.00"},"R","R"]
[]
[21,"Glazed aluminium window not exceeding 2,5m²","No",{"v":1,"d":"1.00"},"R","R"]
[]
[22,"Glazed aluminium window exceeding 2,5m² and not exceeding  5m²","No",{"v":1,"d":"1.00"},"R","R"]
[]
[23,"Glazed aluminium window exceeding 5m² and not exceeding 7.5m²","No",{"v":1,"d":"1.00"},"R","R"]
[]
[null,"Taking down and removing roofs, floors, panelling, ceilings, partitions, etc"]
[]
[24,"Suspended ceilings, including suspension grid, hangers, cornices, etc","m2",{"v":1,"d":"1.00"},"R","R"]
[]
[25,"Drywall partitions not exceeding 3.0m high, including doors, glazed borrowed lights, etc","m",{"v":1,"d":"1.00"},"R","R"]
[]
[26,"Toilet partitioning not exceeding 3.0 m high","m2",{"v":1,"d":"1.00"},"R","R"]
[]
[null,"Taking out and removing sundry joinery work, fittings, etc"]
[]
[27,"Cornices - various widths","m",{"v":1,"d":"1.00"},"R","R"]
[]
[28,"Skirtings - various widths","m",{"v":1,"d":"1.00"},"R","R"]
[]
[29,"Timber sills - various widths","m",{"v":1,"d":"1.00"},"R","R"]
[]
[30,"Timber wall mounted cupboard  - Measured by surface area covered on the wall","m2",{"v":1,"d":"1.00"},"R","R"]
[]
[31,"Timber floor mounted cupboard - Measured by surface area covered on the floor","m2",{"v":1,"d":"1.00"},"R","R"]
[]
[32,"Timber sink cupboard, including sink and disconnecting & terminating waste pipe - Measured by surface area covered on the floor","m2",{"v":1,"d":"1.00"},"R","R"]
[]
[33,"Timber/stone counters","m2",{"v":1,"d":"1.00"},"R","R"]
[]
[null,"Taking out/off and removing sundry metalwork"]
[]
[34,"Steel pipe handrails from walls, including brackets, and making good plaster finish","m",{"v":1,"d":"1.00"},"R","R"]
[]
[null,"Hacking up/off and removing granolithic, screeds, plaster, etc from concrete or brickwork and preparing surfaces for new screed, plaster, tile finishes, etc"]
[]
[35,"Not exceeding 100mm thick Screed from floors","m2",{"v":1,"d":"1.00"},"R","R"]
[]
[36,"Internal plaster from walls and columns not exceeding 3m high","m2",{"v":1,"d":"1.00"},"R","R"]
[]
[37,"Internal plaster from ceilings and beams not exceding 3m high","m2",{"v":1,"d":"1.00"},"R","R"]
[]
[38,"External plaster from walls, columns and beams not exceeding 3m high","m2",{"v":1,"d":"1.00"},"R","R"]
[]
[null,"PREPARATORY WORK TO EXISTING SURFACES"]
[]
[39,"Hacking faces of existing concrete columns, beams, etc to receive plaster","m2",{"v":1,"d":"1.00"},"R","R"]
[]
[40,"Making good defects in existing screeded floors with \"an approved self leveling screed\"","m2",{"v":1,"d":"1.00"},"R","R"]
[null,"Materials paid for on a proven cost basis. (3rd party procurement)"]
[]
[]
[null,"MAKING GOOD OF FINISHES ETC"]
[]
[null,"Making good face brickwork"]
[]
[41,"Ends of half brick walls","m",{"v":1,"d":"1.00"},"R","R"]
[null,"Materials paid for on a proven cost basis. (3rd party procurement)"]
[]
[42,"Ends of one brick walls","m",{"v":1,"d":"1.00"},"R","R"]
[null,"Materials paid for on a proven cost basis. (3rd party procurement)"]
[]
[43,"Faces of walls where half brick  cross walls removed","m",{"v":1,"d":"1.00"},"R","R"]
[null,"Materials paid for on a proven cost basis. (3rd party procurement)"]
[]
[44,"Faces of walls where one brick cross walls removed","m",{"v":1,"d":"1.00"},"R","R"]
[null,"Materials paid for on a proven cost basis. (3rd party procurement)"]
[]
[null,"Making good gypsum plasterboard ceilings and timber brandering"]
[]
[45,"Ceilings in patches","m2",{"v":1,"d":"1.00"},"R","R"]
[null,"Materials paid for on a proven cost basis. (3rd party procurement)"]
[]
[46,"Ceilings where half brick  walls removed","m",{"v":1,"d":"1.00"},"R","R"]
[null,"Materials paid for on a proven cost basis. (3rd party procurement)"]
[]
[47,"Ceilings where one brick walls removed","m",{"v":1,"d":"1.00"},"R","R"]
[null,"Materials paid for on a proven cost basis. (3rd party procurement)"]
[]
[null,"Making good cement screeds"]
[]
[48,"Not exceeding 100mm Thick on floors in patches","m2",{"v":1,"d":"1.00"},"R","R"]
[null,"Materials paid for on a proven cost basis. (3rd party procurement)"]
[]
[49,"Floors where half brick  walls removed","m",{"v":1,"d":"1.00"},"R","R"]
[null,"Materials paid for on a proven cost basis. (3rd party procurement)"]
[]
[50,"Floors where one brick walls removed","m",{"v":1,"d":"1.00"},"R","R"]
[null,"Materials paid for on a proven cost basis. (3rd party procurement)"]
[]
[null,"Making good internal cement plaster"]
[]
[51,"Walls in patches","m2",{"v":1,"d":"1.00"},"R","R"]
[null,"Materials paid for on a proven cost basis. (3rd party procurement)"]
[]
[52,"Concrete ceilings in patches","m2",{"v":1,"d":"1.00"},"R","R"]
[null,"Materials paid for on a proven cost basis. (3rd party procurement)"]
[]
[53,"Walls where half brick  walls removed","m",{"v":1,"d":"1.00"},"R","R"]
[null,"Materials paid for on a proven cost basis. (3rd party procurement)"]
[]
[54,"Walls where one brick walls removed","m",{"v":1,"d":"1.00"},"R","R"]
[null,"Materials paid for on a proven cost basis. (3rd party procurement)"]
[]
[55,"Concrete ceilings where half brick  walls removed","m",{"v":1,"d":"1.00"},"R","R"]
[null,"Materials paid for on a proven cost basis. (3rd party procurement)"]
[]
[56,"Concrete ceilings where one brick walls removed","m",{"v":1,"d":"1.00"},"R","R"]
[null,"Materials paid for on a proven cost basis. (3rd party procurement)"]
[]
[]
[]
[]
[null,"OPENINGS THROUGH EXISTING WALLS ETC"]
[]
[null,"Breaking out for and forming plain openings through brick walls, including prestressed concrete lintels, making good cement plaster on both sides and into reveals and with 20 MPa concrete thresholds with steel trowelled finish and making good."]
[]
[57,"Opening through half brick  wall","m2",{"v":1,"d":"1.00"},"R","R"]
[]
[58,"Opening through one brick wall","m2",{"v":1,"d":"1.00"},"R","R"]
[]
[null,"EXCAVATION, RISK OF COLLAPSE, FILLING, ETC"]
[]
[null,"NOTE: Tenderers are advised to study the Model Preambles for Trades "]
[null,"before pricing this bill"]
[]
[null,"NOTE: Unless otherwise stated herein, all rates should include "]
[null,"compensation for costs to execute the works whatever quantity is required"]
[null,"and should provide for establishment, preliminary and general costs, and "]
[null,"all other costs associated with the execution and supervision."]
[]
[null,"The Client reserves the right to negotiate mutually agreed discounts on"]
[null,"tendered rates for large quantities "]
[]
[null,"EXCAVATION, RISK OF COLLAPSE, FILLING, ETC"]
[]
[null,"Excavation in earth not exceeding 2m deep including carting to a "]
[null,"stockpile"]
[]
[59,"To trenches","m3",{"v":1,"d":"1.00"},"R","R"]
[]
[60,"To holes","m3",{"v":1,"d":"1.00"},"R","R"]
[]
[61,"Reduced levels under floors","m3",{"v":1,"d":"1.00"},"R","R"]
[]
[null,"Excavation in earth exceeding 2m deep but ne. 4m including carting to a stockpile"]
[]
[62,"To trenches","m3",{"v":1,"d":"1.00"},"R","R"]
[]
[63,"To holes","m3",{"v":1,"d":"1.00"},"R","R"]
[]
[64,"Reduced levels under floors","m3",{"v":1,"d":"1.00"},"R","R"]
[]
[null,"Risk of collapse to sides of excavation n.e 2m deep"]
[]
[65,"To trenches","m2",{"v":1,"d":"1.00"},"R","R"]
[]
[66,"To holes","m2",{"v":1,"d":"1.00"},"R","R"]
[]
[null,"Risk of collapse to sides of excavation exceeding 2m but n.e 3.5m deep"]
[]
[67,"To trenches","m2",{"v":1,"d":"1.00"},"R","R"]
[]
[68,"To holes","m2",{"v":1,"d":"1.00"},"R","R"]
[]
[]
[]
[]
[]
[]
[null,"Earth filling obtained from excavations and/or prescribed stock piles "]
[null,"on site compacted to 93 % Mod AASHTO density"]
[]
[69,"Under foundations, floors, steps, pavings, etc","m3",{"v":1,"d":"1.00"},"R","R"]
[]
[null,"Earth filling  supplied by contractor compacted to  93% Mod "]
[null,"AASHTO density"]
[]
[70,"Under floors, steps, paving, foundations, manholes etc","m3",{"v":1,"d":"1.00"},"R","R"]
[null,"Materials paid for on a proven cost basis. (3rd party procurement)"]
[]
[null,"CONCRETE, FORMWORK, REINFORCEMENT"]
[]
[null,"NOTE: Tenderers are advised to study the Model Preambles for Trades "]
[null,"before pricing this bill"]
[]
[null,"NOTE: Unless otherwise stated herein, all rates should include "]
[null,"compensation for costs to execute the works whatever quantity is required"]
[null,"and should provide for establishment, preliminary and general costs, and "]
[null,"all other costs associated with the execution and supervision."]
[]
[null,"The Client reserves the right to negotiate mutually agreed discounts on"]
[null,"tendered rates for large quantities "]
[]
[null,"10 Mpa mass concrete "]
[]
[71,"To strip footings, surface beds, blinding, paving, platforms, steps, bases, kerbing etc","m3",{"v":1,"d":"1.00"},"R","R"]
[null,"Materials paid for on a proven cost basis. (3rd party procurement)"]
[]
[null,"20/25/30/35/40 MPa  vibrated reinforced concrete  "]
[]
[72,"To foundations bases, manholes","m3",{"v":1,"d":"1.00"},"R","R"]
[null,"Materials paid for on a proven cost basis. (3rd party procurement)"]
[]
[73,"To columns","m3",{"v":1,"d":"1.00"},"R","R"]
[null,"Materials paid for on a proven cost basis. (3rd party procurement)"]
[]
[74,"To slabs","m3",{"v":1,"d":"1.00"},"R","R"]
[null,"Materials paid for on a proven cost basis. (3rd party procurement)"]
[]
[75,"To beams","m3",{"v":1,"d":"1.00"},"R","R"]
[null,"Materials paid for on a proven cost basis. (3rd party procurement)"]
[]
[null,"TEST CUBES"]
[]
[76,"Making and testing 150 x 150 x 150mm concrete strength test cube, testing and providing test results","No",{"v":1,"d":"1.00"},"R","R"]
[]
[null,"CONCRETE SUNDRIES"]
[]
[null,"Finishing top surfaces of concrete smooth with a wood float"]
[]
[77,"Surface beds, slabs,beams, walls, paving etc","m2",{"v":1,"d":"1.00"},"R","R"]
[]
[null,"Finishing top surfaces of concrete smooth with a steel trowel"]
[]
[78,"Surface beds, slabs,beams, walls, paving etc","m2",{"v":1,"d":"1.00"},"R","R"]
[]
[]
[]
[null,"Finishing top surfaces of concrete smooth with a power float"]
[]
[79,"Surface beds, slabs,beams, walls, paving etc","m2",{"v":1,"d":"1.00"},"R","R"]
[]
[null,"Rough formwork to sides "]
[]
[80,"Edges , risers, ends and reveals not exceeding ","m",{"v":1,"d":"1.00"},"R","R"]
[null,"300 mm high "]
[null,"Materials paid for on a proven cost basis. (3rd party procurement)"]
[]
[81,"To beams ","m2",{"v":1,"d":"1.00"},"R","R"]
[null,"Materials paid for on a proven cost basis. (3rd party procurement)"]
[]
[null,"Smooth formwork to sides  including supports etc."]
[]
[82,"To beams","m2",{"v":1,"d":"1.00"},"R","R"]
[null,"Materials paid for on a proven cost basis. (3rd party procurement)"]
[]
[83,"To columns ","m2",{"v":1,"d":"1.00"},"R","R"]
[null,"Materials paid for on a proven cost basis. (3rd party procurement)"]
[]
[84,"To pits","m2",{"v":1,"d":"1.00"},"R","R"]
[null,"Materials paid for on a proven cost basis. (3rd party procurement)"]
[]
[85,"To ramps","m2",{"v":1,"d":"1.00"},"R","R"]
[null,"Materials paid for on a proven cost basis. (3rd party procurement)"]
[]
[86,"Smooth form to soffit of slab including mould oil","m2",{"v":1,"d":"1.00"},"R","R"]
[null,"Materials paid for on a proven cost basis. (3rd party procurement)"]
[]
[null,"Fix - Mild steel reinforcement to structural concrete work"]
[]
[87,"Various Diameter bars","ton",{"v":1,"d":"1.00"},"R","R"]
[null,"Materials paid for on a proven cost basis. (3rd party procurement)"]
[]
[null,"Fix - High  tensile steel reinforcement to structural concrete work"]
[]
[88,"Various Diameter bars","ton",{"v":1,"d":"1.00"},"R","R"]
[null,"Materials paid for on a proven cost basis. (3rd party procurement)"]
[]
[null,"Fabric reinforcement"]
[]
[null,"User note"]
[]
[null,"The following types of fabric reinforcement are normally specified: Types 100, 193, 245, 311 and 395"]
[]
[89,"Type 100/193/245/311/395 fabric reinforcement in concrete surface beds, concrete slabs, walls, pre-bent cages etc","m2",{"v":1,"d":"1.00"},"R","R"]
[null,"Materials paid for on a proven cost basis. (3rd party procurement)"]
[]
[null,"Joint sealants "]
[]
[90,"Silicone sealing compound in 10 - 50 mm wide joints between units","m",{"v":1,"d":"1.00"},"R","R"]
[null,"including backing  strips, bond breaker, primer etc"]
[null,"Materials paid for on a proven cost basis. (3rd party procurement)"]
[]
[91,"Polysulphide sealing compound in 10 - 50 mm wide joints between units","m",{"v":1,"d":"1.00"},"R","R"]
[null,"including backing strips, bond breaker, primer etc"]
[null,"Materials paid for on a proven cost basis. (3rd party procurement)"]
[]
[null,"MASONRY"]
[]
[null,"NOTE: Tenderers are advised to study the Model Preambles for Trades "]
[null,"before pricing this bill"]
[]
[null,"NOTE: Unless otherwise stated herein, all rates should include "]
[null,"compensation for costs to execute the works whatever quantity is required"]
[null,"and should provide for establishment, preliminary and general costs, and "]
[null,"all other costs associated with the execution and supervision."]
[]
[null,"The Client reserves the right to negotiate mutually agreed discounts on"]
[null,"tendered rates for large quantities "]
[]
[null,"BRICKWORK"]
[]
[null,"Brickwork of NFX  clay bricks (14 MPa nominal compressive strength ) in class II mortar in stretcher bond "]
[]
[92,"Piers","m3",{"v":1,"d":"1.00"},"R","R",null,null,{"$f":"1/0.22","v":4.545454545454546}]
[null,"Materials paid for on a proven cost basis. (3rd party procurement)",{"$nulls":6},{"$f":"I408*104","v":472.72727272727275}]
[{"$nulls":8},{"$f":"I409*1.5","v":709.0909090909091}]
[93,"Half brick walls","m2",{"v":1,"d":"1.00"},"R","R"]
[null,"Materials paid for on a proven cost basis. (3rd party procurement)"]
[]
[94,"One brick walls","m2",{"v":1,"d":"1.00"},"R","R"]
[null,"Materials paid for on a proven cost basis. (3rd party procurement)"]
[]
[95,"Cavity walls - Made up of Two half brick skins","m2",{"v":1,"d":"1.00"},"R","R"]
[null,"Materials paid for on a proven cost basis. (3rd party procurement)"]
[]
[96,"Cutting toothings and bonding new brickwork to existing","m2",{"v":1,"d":"1.00"},"R","R"]
[null,"Materials paid for on a proven cost basis. (3rd party procurement)"]
[]
[null,"Brickwork in Stock clay bricks (7 Mpa nominal strength) in class II"]
[null,"mortar in stretcher bond "]
[]
[97,"Piers","m3",{"v":1,"d":"1.00"},"R","R"]
[null,"Materials paid for on a proven cost basis. (3rd party procurement)"]
[]
[98,"Half brick walls","m2",{"v":1,"d":"1.00"},"R","R"]
[null,"Materials paid for on a proven cost basis. (3rd party procurement)"]
[]
[99,"One brick walls","m2",{"v":1,"d":"1.00"},"R","R"]
[null,"Materials paid for on a proven cost basis. (3rd party procurement)"]
[]
[100,"Cavity walls - Made up of two half brick skins","m2",{"v":1,"d":"1.00"},"R","R"]
[null,"Materials paid for on a proven cost basis. (3rd party procurement)"]
[]
[101,"Cutting toothings and bonding new brickwork to existing","m2",{"v":1,"d":"1.00"},"R","R"]
[null,"Materials paid for on a proven cost basis. (3rd party procurement)"]
[]
[null,"Prestressed precast lintels "]
[]
[102,"Above openings regardless of wall thickness","m",{"v":1,"d":"1.00"},"R","R"]
[null,"Materials paid for on a proven cost basis. (3rd party procurement)"]
[]
[null,"Fabric Reinforcement"]
[]
[103,"75mm Galvanised brickforce suitable for half brick walls","m",{"v":1,"d":"1.00"},"R","R"]
[null,"Materials paid for on a proven cost basis. (3rd party procurement)"]
[]
[104,"150mm Galvanised brickforce suitable for one brick walls","m",{"v":1,"d":"1.00"},"R","R"]
[null,"Materials paid for on a proven cost basis. (3rd party procurement)"]
[]
[]
[null,"CEILINGS  AND PARTITIONS"]
[]
[null,"NOTE: Tenderers are advised to study the Model Preambles for Trades "]
[null,"before pricing this bill"]
[]
[null,"NOTE: Unless otherwise stated herein, all rates should include "]
[null,"compensation for costs to execute the works whatever quantity is required"]
[null,"and should provide for establishment, preliminary and general costs, and "]
[null,"all other costs associated with the execution and supervision."]
[]
[null,"The Client reserves the right to negotiate mutually agreed discounts on"]
[null,"tendered rates for large quantities "]
[]
[null,"SUSPENDED CEILINGS"]
[]
[null,"Note: Rates below will be applicable where work exceeds 5m2 per location"]
[]
[null,"9mm “Rhino” gypsum plasterboard with taped and skimmed joints"]
[]
[105,"Ceilings installed using propriety framing system all according to ","m2",{"v":1,"d":"1.00"},"R","R"]
[null,"manufacturers specifications"]
[null,"Materials paid for on a proven cost basis. (3rd party procurement)"]
[]
[106,"Vertical ceilings installed using propriety framing system all according to ","m2",{"v":1,"d":"1.00"},"R","R"]
[null,"manufacturers specifications"]
[null,"Materials paid for on a proven cost basis. (3rd party procurement)"]
[]
[107,"Horizontal bulkheads installed using propriety framing system all ","m2",{"v":1,"d":"1.00"},"R","R"]
[null,"according to manufacturers specifications"]
[null,"Materials paid for on a proven cost basis. (3rd party procurement)"]
[]
[null,"600 x 1200mm panels on pre painted (pre-coated)"]
[null,"suspension system including main and cross tees necessary hangers,"]
[null,"grids, etc "]
[]
[108,"Ceilings suspended  below soffits"," m2",{"v":1,"d":"1.00"},"R","R"]
[null,"Materials paid for on a proven cost basis. (3rd party procurement)"]
[]
[109,"Horizontal bulkheads suspended  below concrete soffits","m2",{"v":1,"d":"1.00"},"R","R"]
[null,"Materials paid for on a proven cost basis. (3rd party procurement)"]
[]
[110,"Sloping bulkheads suspended below concrete soffits","m2",{"v":1,"d":"1.00"},"R","R"]
[null,"Materials paid for on a proven cost basis. (3rd party procurement)"]
[]
[111,"Extra over ceiling for opening for sprinkler head","no",{"v":1,"d":"1.00"},"R","R"]
[null,"Materials paid for on a proven cost basis. (3rd party procurement)"]
[]
[112,"Extra over ceiling for opening for down lighter","no",{"v":1,"d":"1.00"},"R","R"]
[null,"Materials paid for on a proven cost basis. (3rd party procurement)"]
[]
[113,"Extra over ceiling for 600 x 1 200mm light fitting","no",{"v":1,"d":"1.00"},"R","R"]
[null,"Materials paid for on a proven cost basis. (3rd party procurement)"]
[]
[]
[]
[]
[null,"600mm x 600mm panels on pre painted (pre-coated)"]
[null,"exposed tee suspension system "]
[]
[114,"Ceilings suspended  below soffits"," m2",{"v":1,"d":"1.00"},"R","R"]
[null,"Materials paid for on a proven cost basis. (3rd party procurement)"]
[]
[115,"Horizontal bulkheads suspended  below concrete","m2",{"v":1,"d":"1.00"},"R","R"]
[null,"soffits "]
[null,"Materials paid for on a proven cost basis. (3rd party procurement)"]
[]
[116,"Sloping bulkheads suspended  below concrete soffits","m2",{"v":1,"d":"1.00"},"R","R"]
[null,"Materials paid for on a proven cost basis. (3rd party procurement)"]
[]
[117,"Extra over ceiling for opening for sprinkler head","no",{"v":1,"d":"1.00"},"R","R"]
[null,"Materials paid for on a proven cost basis. (3rd party procurement)"]
[]
[118,"Extra over ceiling for opening for down lighter","no",{"v":1,"d":"1.00"},"R","R"]
[null,"Materials paid for on a proven cost basis. (3rd party procurement)"]
[]
[119,"Extra over ceiling for 600 x 600mm light fitting","no",{"v":1,"d":"1.00"},"R","R"]
[null,"Materials paid for on a proven cost basis. (3rd party procurement)"]
[]
[null,"Cornices to suspended ceilings "]
[]
[120,"Pre-painted / coated cornices plugged ","m",{"v":1,"d":"1.00"},"R","R"]
[null,"Materials paid for on a proven cost basis. (3rd party procurement)"]
[]
[null,"Shadowline to suspended ceilings "]
[]
[121,"Pre-painted / coated shadowline trim fixed ","m",{"v":1,"d":"1.00"},"R","R"]
[null,"Materials paid for on a proven cost basis. (3rd party procurement)"]
[]
[null,"PARTITIONS "]
[]
[null,"“Rhino-Drywall System “ steel stud partitioning with \""]
[null,"Rhino Wall board” on both sides including skirtings and top track"]
[null,"all as per manufacturers specifications"]
[]
[122,"Partitioning up to 2 600mm high with bottom and top tracks plugged","m2",{"v":1,"d":"1.00"},"R","R"]
[null,"Materials paid for on a proven cost basis. (3rd party procurement)"]
[]
[123,"Partitioning up to 2 900mm high with bottom and top tracks plugged","m2",{"v":1,"d":"1.00"},"R","R"]
[null,"Materials paid for on a proven cost basis. (3rd party procurement)"]
[]
[124,"Partitioning up to 3 500mm high with bottom and top tracks plugged","m2",{"v":1,"d":"1.00"},"R","R"]
[null,"Materials paid for on a proven cost basis. (3rd party procurement)"]
[]
[null,"DOORS"]
[]
[125,"Extra over partitioning for Single Door hung to pressed steel door frame","no",{"v":1,"d":"1.00"},"R","R"]
[null,"including additional studding, trimming, etc."]
[null,"Materials paid for on a proven cost basis. (3rd party procurement)"]
[]
[126,"Extra over partitioning for Double Door hung to pressed steel door frame","no",{"v":1,"d":"1.00"},"R","R"]
[null,"including additional studding, trimming, etc."]
[null,"Materials paid for on a proven cost basis. (3rd party procurement)"]
[]
[]
[]
[]
[]
[]
[null,"METALWORK"]
[]
[null,"NOTE: Tenderers are advised to study the Model Preambles for Trades "]
[null,"before pricing this bill"]
[]
[null,"NOTE: Unless otherwise stated herein, all rates should include "]
[null,"compensation for costs to execute the works whatever quantity is required"]
[null,"and should provide for establishment, preliminary and general costs, and "]
[null,"all other costs associated with the execution and supervision."]
[]
[null,"The Client reserves the right to negotiate mutually agreed discounts on"]
[null,"tendered rates for large quantities "]
[]
[null,"SUNDRY STAINLESS STEELWORK"]
[]
[null,"Grade 316 Stainless steel corner protectors"]
[]
[127,"Angle section corner protectors in varying lengths, widths and thicknesses","m",{"v":1,"d":"1.00"},"R","R"]
[null,"screwed/bolted/glued to brickwork or concrete at 350mm centres"]
[null,"Materials paid for on a proven cost basis. (3rd party procurement)"]
[]
[null,"Galvanized steel corner protectors"]
[]
[128,"Angle section corner protectors in varying lengths, widths and thicknesses","m",{"v":1,"d":"1.00"},"R","R"]
[null,"screwed/bolted/glued to brickwork or concrete at 350mm centres"]
[null,"Materials paid for on a proven cost basis. (3rd party procurement)"]
[]
[null,"STAINLESS STEEL BARRIERS"]
[]
[null,"Grade 316 Stainless Steel barriers"]
[]
[129,"Up to 50mm diameter stainless steel barriers including all necessary bends, ","m",{"v":1,"d":"1.00"},"R","R"]
[null,"welds, stop ends, mitres, notches, recesses and openings"]
[null,"Materials paid for on a proven cost basis. (3rd party procurement)"]
[]
[130,"Ditto in vertical supports","m",{"v":1,"d":"1.00"},"R","R"]
[null,"Materials paid for on a proven cost basis. (3rd party procurement)"]
[]
[131,"51 - 75mm diameter stainless steel barriers including all necessary bends,","m",{"v":1,"d":"1.00"},"R","R"]
[null,"welds ,  stop ends, mitres, notches, recesses and openings"]
[null,"Materials paid for on a proven cost basis. (3rd party procurement)"]
[]
[132,"Ditto in vertical supports","m",{"v":1,"d":"1.00"},"R","R"]
[null,"Materials paid for on a proven cost basis. (3rd party procurement)"]
[]
[133,"76 - 100mm diameter stainless steel barriers including all necessary bends,","m",{"v":1,"d":"1.00"},"R","R"]
[null,"welds ,  stop ends, mitres, notches, recesses and openings"]
[null,"Materials paid for on a proven cost basis. (3rd party procurement)"]
[]
[134,"Ditto in vertical supports","m",{"v":1,"d":"1.00"},"R","R"]
[null,"Materials paid for on a proven cost basis. (3rd party procurement)"]
[]
[135,"Up to 30mm diameter stainless steel handrails including necessary bends, welds, stop ends, mitres, notches, recesses and openings","m",{"v":1,"d":"1.00"},"R","R"]
[null,"Materials paid for on a proven cost basis. (3rd party procurement)"]
[]
[136,"30 - 70mm diameter stainless steel handrails including necessary bends, welds, stop ends, mitres, notches, recesses and openings","m",{"v":1,"d":"1.00"},"R","R"]
[null,"Materials paid for on a proven cost basis. (3rd party procurement)"]
[]
[137,"Up to 70mm diameter stainless steel vertical member including necessary bends, welds, stop ends, mitres, notches, recesses and openings","m",{"v":1,"d":"1.00"},"R","R"]
[null,"Materials paid for on a proven cost basis. (3rd party procurement)"]
[]
[null,"MILD STEEL"]
[]
[138,"Up to 75mm diameter mild steel pipe to steel barriers including necessary bends, welds ,  stop ends, mitres, notches, recesses and openings","m",{"v":1,"d":"1.00"},"R","R"]
[null,"Materials paid for on a proven cost basis. (3rd party procurement)"]
[]
[139,"76 - 100mm diameter mild steel pipe to steel barriers including necessary","m",{"v":1,"d":"1.00"},"R","R"]
[null,"bends, welds ,  stop ends, mitres, notches, recesses and openings"]
[null,"Materials paid for on a proven cost basis. (3rd party procurement)"]
[]
[140,"101 - 150mm diameter mild steel pipe to steel barriers including necessary","m",{"v":1,"d":"1.00"},"R","R"]
[null,"bends, welds , stop ends, mitres, notches, recesses and openings"]
[null,"Materials paid for on a proven cost basis. (3rd party procurement)"]
[]
[141,"Vertical supports up to 75mm diameter steel pipe"," m",{"v":1,"d":"1.00"},"R","R"]
[null,"Materials paid for on a proven cost basis. (3rd party procurement)"]
[]
[142,"Vertical supports to 76 - 100mm diameter steel pipe","m ",{"v":1,"d":"1.00"},"R","R"]
[null,"Materials paid for on a proven cost basis. (3rd party procurement)"]
[]
[143,"Vertical supports to 101 - 150mm diameter steel pipe","m",{"v":1,"d":"1.00"},"R","R"]
[null,"Materials paid for on a proven cost basis. (3rd party procurement)"]
[]
[null,"GALVANIZED MILD STEEL"]
[]
[144,"Up to 75mm diameter galvanzed mild steel pipe to steel barriers including","m",{"v":1,"d":"1.00"},"R","R"]
[null,"necessary bends , welds ,  stop ends, mitres, notches, recesses and openings"]
[null,"Materials paid for on a proven cost basis. (3rd party procurement)"]
[]
[145,"76 - 100mm diameter galvanized mild steel pipe to steel barriers including","m",{"v":1,"d":"1.00"},"R","R"]
[null,"necessary bends , welds ,  stop ends, mitres, notches, recesses and openings"]
[null,"Materials paid for on a proven cost basis. (3rd party procurement)"]
[]
[146,"101 - 150mm diameter galvanized mild steel pipe to steel barriers including","m",{"v":1,"d":"1.00"},"R","R"]
[null,"necessary bends , welds ,  stop ends, mitres, notches, recesses and openings"]
[null,"Materials paid for on a proven cost basis. (3rd party procurement)"]
[]
[147,"Vertical supports up to 75mm diameter steel pipe"," m",{"v":1,"d":"1.00"},"R","R"]
[null,"Materials paid for on a proven cost basis. (3rd party procurement)"]
[]
[148,"Vertical supports to 76 - 100mm diameter steel pipe","m ",{"v":1,"d":"1.00"},"R","R"]
[null,"Materials paid for on a proven cost basis. (3rd party procurement)"]
[]
[149,"Vertical supports to 101 - 150mm diameter steel pipe","m",{"v":1,"d":"1.00"},"R","R"]
[null,"Materials paid for on a proven cost basis. (3rd party procurement)"]
{"$rows_empty":11}
[null,"PLASTER"]
[]
[null,"NOTE: Tenderers are advised to study the Model Preambles for Trades "]
[null,"before pricing this bill"]
[]
[null,"NOTE: Unless otherwise stated herein, all rates should include "]
[null,"compensation for costs to execute the works whatever quantity is required"]
[null,"and should provide for establishment, preliminary and general costs, and "]
[null,"all other costs associated with the execution and supervision."]
[]
[null,"The Client reserves the right to negotiate mutually agreed discounts on"]
[null,"tendered rates for large quantities "]
[]
[null,"EXTERNAL PLASTER"]
[]
[null,"Class I cement plaster on brickwork"]
[]
[150,"On walls","m2",{"v":1,"d":"1.00"},"R","R"]
[null,"Materials paid for on a proven cost basis. (3rd party procurement)"]
[]
[null,"Class I cement plaster on concrete"]
[]
[151,"On walls / columns","m2",{"v":1,"d":"1.00"},"R","R"]
[null,"Materials paid for on a proven cost basis. (3rd party procurement)"]
[]
[152,"On soffits / beams","m2",{"v":1,"d":"1.00"},"R","R"]
[null,"Materials paid for on a proven cost basis. (3rd party procurement)"]
[]
[null,"INTERNAL PLASTER"]
[]
[null,"Class I cement plaster on brickwork"]
[]
[153,"On walls","m2",{"v":1,"d":"1.00"},"R","R"]
[null,"Materials paid for on a proven cost basis. (3rd party procurement)"]
[]
[null,"Class I cement plaster on concrete"]
[]
[154,"On walls/ columns","m2",{"v":1,"d":"1.00"},"R","R"]
[null,"Materials paid for on a proven cost basis. (3rd party procurement)"]
[]
[155,"On soffits / beams","m2",{"v":1,"d":"1.00"},"R","R"]
[null,"Materials paid for on a proven cost basis. (3rd party procurement)"]
[]
[null,"Rhinolite skim plaster 20mm thick with smooth trowel finish"]
[]
[156,"On partition walls","m2",{"v":1,"d":"1.00"},"R","R"]
[null,"Materials paid for on a proven cost basis. (3rd party procurement)"]
[]
[157,"On plaster board ceilings","m2",{"v":1,"d":"1.00"},"R","R"]
[null,"Materials paid for on a proven cost basis. (3rd party procurement)"]
[]
[158,"On bulkheads","m2",{"v":1,"d":"1.00"},"R","R"]
[null,"Materials paid for on a proven cost basis. (3rd party procurement)"]
{"$rows_empty":8}
[null,"TILING "]
[]
[null,"NOTE: Tenderers are advised to study the Model Preambles for Trades "]
[null,"before pricing this bill"]
[]
[null,"NOTE: Unless otherwise stated herein, all rates should include "]
[null,"compensation for costs to execute the works whatever quantity is required"]
[null,"and should provide for establishment, preliminary and general costs, and "]
[null,"all other costs associated with the execution and supervision."]
[]
[null,"NOTE: Tiles retrieved from ACSA storage will be issued to the contractor for installation. The contractor must not include the cost of supplying the tile in the tendered rates."]
[null,"Materials paid for on a proven cost basis. (3rd party procurment)"]
[]
[null,"The Client reserves the right to negotiate mutually agreed discounts on"]
[null,"tendered rates for large quantities "]
[]
[null,"WALL TILING"]
[]
[null,"Exceeding 5m2 per location"]
[]
[159,"On walls","m2",{"v":1,"d":"1.00"},"R","R"]
[null,"Materials paid for on a proven cost basis. (3rd party procurement)"]
[]
[160,"On narrow widths","m2",{"v":1,"d":"1.00"},"R","R"]
[null,"Materials paid for on a proven cost basis. (3rd party procurement)"]
[]
[null,"FLOOR TILING"]
[]
[null,"Exceeding 5m2 per location"]
[]
[161,"On floors","m2",{"v":1,"d":"1.00"},"R","R"]
[null,"Materials paid for on a proven cost basis. (3rd party procurement)"]
[]
[162,"On narrow widths","m2",{"v":1,"d":"1.00"},"R","R"]
[null,"Materials paid for on a proven cost basis. (3rd party procurement)"]
[]
[163,"On floors landings in patterns","m2",{"v":1,"d":"1.00"},"R","R"]
[null,"Materials paid for on a proven cost basis. (3rd party procurement)"]
[]
[null,"SUNDRIES"]
[]
[null,"Aluminium dividing strips"]
[]
[164,"Flat section dividing strips between tiles","m",{"v":1,"d":"1.00"},"R","R"]
[null,"Materials paid for on a proven cost basis. (3rd party procurement)"]
[]
[165,"L-section dividing strips between tiles","m",{"v":1,"d":"1.00"},"R","R"]
[null,"Materials paid for on a proven cost basis. (3rd party procurement)"]
[]
[null,"Aluminium / Stainless steel/ Brass/ corner protectors, stair nosings, expansion joint strips, etc"]
[]
[166,"Corner protectors","m",{"v":1,"d":"1.00"},"R","R"]
[null,"Materials paid for on a proven cost basis. (3rd party procurement)"]
[]
[167,"Stair nosings","m",{"v":1,"d":"1.00"},"R","R"]
[null,"Materials paid for on a proven cost basis. (3rd party procurement)"]
[]
[]
[168,"Single expansion joint strips with vinyl rubber inlay","m",{"v":1,"d":"1.00"},"R","R"]
[null,"Materials paid for on a proven cost basis. (3rd party procurement)"]
[]
[169,"Double expansion joint strips with vinyl rubber inlay","m",{"v":1,"d":"1.00"},"R","R"]
[null,"Materials paid for on a proven cost basis. (3rd party procurement)"]
[]
[null,"PAINTWORK"]
[]
[null,"NOTE: Tenderers are advised to study the Model Preambles for Trades "]
[null,"before pricing this bill"]
[]
[null,"NOTE: Unless otherwise stated herein, all rates should include "]
[null,"compensation for costs to execute the works whatever quantity is required"]
[null,"and should provide for establishment, preliminary and general costs, and "]
[null,"all other costs associated with the execution and supervision."]
[]
[null,"NOTE: Establishment includes all necessary sundries which includes but is not limited to: Brushes, rollers, extensions, ladders,  etc"]
[]
[null,"NOTE: All paint products utilised must be SABS/SANS approved."]
[null,"All paint products utilised must be suitable for use in commercial/industrial applications. Acceptable products include proffesional or trade ranges from paint manufacturers. All products utilised  must be suited to the application in which it will be used. Paint utilised must perform in accordance with applicable and relevant SANS codes"]
[]
[null,"The client reserves the right to reject paint coatings that perform poorly / fail due to inferior quality."]
[]
[null,"The Client reserves the right to negotiate mutually agreed discounts on"]
[null,"tendered rates for large quantities "]
[]
[null,"PAINTWORK TO NEW WORK"]
[]
[null,"One coat primer/undercoat/sealer and two top coats  paint"]
[]
[170,"On internal walls","m2",{"v":1,"d":"1.00"},"R","R"]
[null,"Materials paid for on a proven cost basis. (3rd party procurement)"]
[]
[171,"On external walls","m2",{"v":1,"d":"1.00"},"R","R"]
[null,"Materials paid for on a proven cost basis. (3rd party procurement)"]
[]
[172,"On ceilings and beams","m2",{"v":1,"d":"1.00"},"R","R"]
[null,"Materials paid for on a proven cost basis. (3rd party procurement)"]
[]
[173,"On partitions","m2",{"v":1,"d":"1.00"},"R","R"]
[null,"Materials paid for on a proven cost basis. (3rd party procurement)"]
[]
[174,"On ceilings and cornices","m2",{"v":1,"d":"1.00"},"R","R"]
[null,"Materials paid for on a proven cost basis. (3rd party procurement)"]
[]
[175,"On fascias and barge boards","m2",{"v":1,"d":"1.00"},"R","R"]
[null,"Materials paid for on a proven cost basis. (3rd party procurement)"]
[]
[null,"Apply one coat Alkali resistant plaster "]
[null,"primer and two coats Paint"]
[]
[176,"On Rhinolite walls ","m2",{"v":1,"d":"1.00"},"R","R"]
[null,"Materials paid for on a proven cost basis. (3rd party procurement)"]
[]
[null,"Apply one coat  Alkali resistant plaster "]
[null,"primer and two coats Enamel Paint"]
[]
[177,"On walls with oil base.","m2",{"v":1,"d":"1.00"},"R","R"]
[null,"Materials paid for on a proven cost basis. (3rd party procurement)"]
[]
[null,"ON METAL"]
[]
[null,"Prime bare metal surfaces with \"Superior Quality\" zinc chromate"]
[null,"and apply one undercoat and two coats   paint on steel"]
[]
[178,"On doors","m2",{"v":1,"d":"1.00"},"R","R"]
[null,"Materials paid for on a proven cost basis. (3rd party procurement)"]
[]
[179,"On door frames","m2",{"v":1,"d":"1.00"},"R","R"]
[null,"Materials paid for on a proven cost basis. (3rd party procurement)"]
[]
[180,"On windows","m2",{"v":1,"d":"1.00"},"R","R"]
[null,"Materials paid for on a proven cost basis. (3rd party procurement)"]
[]
[181,"On windows with burglar bars","m2",{"v":1,"d":"1.00"},"R","R"]
[null,"Materials paid for on a proven cost basis. (3rd party procurement)"]
[]
[182,"On gates, grilles, burglar screens, balustrades, etc (both sides measured)","m2",{"v":1,"d":"1.00"},"R","R"]
[null,"Materials paid for on a proven cost basis. (3rd party procurement)"]
[]
[null,"Prime bare areas with Anti-corrosive primer "]
[null,"apply two coats  Enamel Paint to mild steel"]
[]
[183,"On palisade fencing","m2",{"v":1,"d":"1.00"},"R","R"]
[null,"Materials paid for on a proven cost basis. (3rd party procurement)"]
[]
[184,"On steel barriers","m2",{"v":1,"d":"1.00"},"R","R"]
[null,"Materials paid for on a proven cost basis. (3rd party procurement)"]
[]
[185,"On balustrades","m2",{"v":1,"d":"1.00"},"R","R"]
[null,"Materials paid for on a proven cost basis. (3rd party procurement)"]
[]
[186,"On gates, grilles, burglar screens etc.","m2",{"v":1,"d":"1.00"},"R","R"]
[null,"Materials paid for on a proven cost basis. (3rd party procurement)"]
[]
[null,"ON WOOD"]
[]
[null,"One coat wood primer, one undercoat & two coats alkyd enamel paint"]
[]
[187,"On boarded panelling","m2",{"v":1,"d":"1.00"},"R","R"]
[null,"Materials paid for on a proven cost basis. (3rd party procurement)"]
[]
[188,"On boarded ceilings","m2",{"v":1,"d":"1.00"},"R","R"]
[null,"Materials paid for on a proven cost basis. (3rd party procurement)"]
[]
[189,"On doors","m2",{"v":1,"d":"1.00"},"R","R"]
[null,"Materials paid for on a proven cost basis. (3rd party procurement)"]
[]
[190,"On door frames","m2",{"v":1,"d":"1.00"},"R","R"]
[null,"Materials paid for on a proven cost basis. (3rd party procurement)"]
[]
[200,"On skirtings"," m",{"v":1,"d":"1.00"},"R","R"]
[null,"Materials paid for on a proven cost basis. (3rd party procurement)"]
[]
[null,"Prime bare areas with \"Wood Primer\""]
[null,"and apply two coats \"Timber Varnish\""]
[]
[201,"On boarded panelling","m2",{"v":1,"d":"1.00"},"R","R"]
[null,"Materials paid for on a proven cost basis. (3rd party procurement)"]
[]
[202,"On boarded ceilings","m2",{"v":1,"d":"1.00"},"R","R"]
[null,"Materials paid for on a proven cost basis. (3rd party procurement)"]
[]
[203,"On doors","m2",{"v":1,"d":"1.00"},"R","R"]
[null,"Materials paid for on a proven cost basis. (3rd party procurement)"]
[]
[204,"On door frames","m2",{"v":1,"d":"1.00"},"R","R"]
[null,"Materials paid for on a proven cost basis. (3rd party procurement)"]
[]
[205,"On skirtings","m",{"v":1,"d":"1.00"},"R","R"]
[null,"Materials paid for on a proven cost basis. (3rd party procurement)"]
[]
[null,"STEEL ROOFS"]
[]
[null,"Prepare surface, prime bare areas with primer and apply two coats roof paint"]
[]
[206,"On metal roof sheets ","m2",{"v":1,"d":"1.00"},"R","R"]
[null,"Materials paid for on a proven cost basis. (3rd party procurement)"]
[]
[207,"To cladding sheets ","m2",{"v":1,"d":"1.00"},"R","R"]
[null,"Materials paid for on a proven cost basis. (3rd party procurement)"]
[]
[null,"CARPORTS / SHADEPORTS"]
[]
[null,"NOTE: Tenderers are advised to study the Model Preambles for Trades "]
[null,"before pricing this bill"]
[]
[null,"NOTE: Unless otherwise stated herein, all rates should include "]
[null,"compensation for costs to execute the works whatever quantity is required"]
[null,"and should provide for establishment, preliminary and general costs, and "]
[null,"all other costs associated with the execution and supervision."]
[]
[null,"The Client reserves the right to negotiate mutually agreed discounts on"]
[null,"tendered rates for large quantities "]
[]
[null,"Single Bay Carports / Shadeports"]
[]
[208,"Carefully remove existing shade net covering, clean, derust, replace corroded fixings and spot treat areas affected by corrosion. Ensure all existing and all new fixing are well secured and reinstate existing shade cloth netting. Upon completion the structure should be structurally secure, free from rust and fit for use as per original design","no",{"v":1,"d":"1.00"},"R","R"]
[null,"Materials paid for on a proven cost basis. (3rd party procurement)"]
[]
[null,"Double Bay Carports / Shadeports"]
[]
[209,"Carefully remove existing shade net covering, clean, derust, replace corroded fixings and spot treat areas affected by corrosion. Ensure all existing and all new fixing are well secured and reinstate existing shade cloth netting. Upon completion the structure should be structurally secure, free from rust and fit for use as per original design","no",{"v":1,"d":"1.00"},"R","R"]
[null,"Materials paid for on a proven cost basis. (3rd party procurement)"]
[]
[]
[]
[]
[null,"Tripple Bay Carports / Shadeports"]
[]
[210,"Carefully remove existing shade net covering, clean, derust, replace corroded fixings and spot treat areas affected by corrosion. Ensure all existing and all new fixing are well secured and reinstate existing shade cloth netting. Upon completion the structure should be structurally secure, free from rust and fit for use as per original design","no",{"v":1,"d":"1.00"},"R","R"]
[null,"Materials paid for on a proven cost basis. (3rd party procurement)"]
[]
[null,"PROFESSIONAL  SERVICES"]
[]
[null,"NOTE: Unless otherwise stated herein, all "]
[null,"rates should include compensation for costs"]
[null,"to execute the works whatever  quantity  is"]
[null,"preliminary and general costs, and all other costs"]
[]
[null,"The Client reserves the right to negotiate "]
[null,"mutually agreed discounts on tendered rates "]
[]
[null,"PROFESSIONAL  SERVICES"]
[]
[null,"Professional services are contemplated for this contract on an as needed basis. No commitement is made to expend any provision made in this bills of quantities. Professional services will include but is not limited to the categories outlined by the relevant professional body. Where proffessional services are required, the appointed contractor shall ensure that the sub-contractor appointed is a registered and active proffesional with the relevant professional body. "]
[]
[null,"Professional Services categories in line with provisions made by relevant professional bodies / councils:"]
[]
[null,"Professional Architect"]
[null,"Framework for the profesional fees guideline in respect of services provided by person(s) registered in terms of the Architectural Profession Act, 2000 (Act No.44 of 2000)"]
[]
[211,"Percentage based fees in line with SACAP guidelines. Percentage based on full consulting services (Stages 1 - 6). Note: ACSA reserves the right to appoint for only the stages deemed required by ACSA.","%","%",{"v":100,"d":"R100.00"},"R"]
[]
[212,"Time based fees in line with SACAP guidelines. Fees based on full consulting services (Stages 1 - 6). Note: ACSA reserves the right to appoint for only the stages deemed required by ACSA.","Hrs",{"v":1,"d":"1.00"},"R","R"]
[]
[null,"Professional Structural Engineer"]
[null,"Guideline for services and processes of estimating fees for persons registered in terms of the Engineering Profession Act, 2000 (Act no.46 of 2000)"]
[]
[213,"Percentage based fees in line with ECSA guidelines. Percentage based on full consulting services (Stages 1 - 6). Note: ACSA reserves the right to appoint for only the stages deemed required by ACSA. ","%","%",{"v":100,"d":"R100.00"},"R"]
[]
[214,"Time based fees in line with ECSA guidelines. Fees based on full consulting services (Stages 1 - 6). Note: ACSA reserves the right to appoint for only the stages deemed required by ACSA. ","Hrs",{"v":1,"d":"1.00"},"R","R"]
[]
[null,"Professional Civil Engineer"]
[null,"Guideline for services and processes of estimating fees for persons registered in terms of the Engineering Profession Act, 2000 (Act no.46 of 2000)"]
[]
[215,"Percentage based fees in line with ECSA guidelines. Percentage based on full consulting services (Stages 1 - 6). Note: ACSA reserves the right to appoint for only the stages deemed required by ACSA. ","%","%",{"v":100,"d":"R100.00"},"R"]
[]
[216,"Time based fees in line with ECSA guidelines. Fees based on full consulting services (Stages 1 - 6). Note: ACSA reserves the right to appoint for only the stages deemed required by ACSA. ","Hrs",{"v":1,"d":"1.00"},"R","R"]
[]
[null,"Professional Quantity Surveyor"]
[null,"Guideline tarrif of professional fees for persons registered in terms of the Quantity  Surveying Profession Act, 2000 (Act no.49 of 2000)"]
[]
[217,"Percentage based fees in line with SACQSP guidelines. Percentage based on full consulting services (Stages 1 - 6). Note: ACSA reserves the right to appoint for only the stages deemed required by ACSA. ","%","%",{"v":100,"d":"R100.00"},"R"]
[]
[218,"Time based fees in line with SACQSP guidelines. Fees based on full consulting services (Stages 1 - 6). Note: ACSA reserves the right to appoint for only the stages deemed required by ACSA. ","Hrs",{"v":1,"d":"1.00"},"R","R"]
[]
[null,"Professional Mechanical Engineer"]
[null,"Guideline for services and processes of estimating fees for persons registered in terms of the Engineering Profession Act, 2000 (Act no.46 of 2000)"]
[]
[219,"Percentage based fees in line with ECSA guidelines. Percentage based on full consulting services (Stages 1 - 6). Note: ACSA reserves the right to appoint for only the stages deemed required by ACSA. ","%","%",{"v":100,"d":"R100.00"},"R"]
[]
[220,"Time based fees in line with ECSA guidelines. Fees based on full consulting services (Stages 1 - 6). Note: ACSA reserves the right to appoint for only the stages deemed required by ACSA. ","Hrs",{"v":1,"d":"1.00"},"R","R"]
[]
[null,"Professional Electrical Engineer"]
[null,"Guideline for services and processes of estimating fees for persons registered in terms of the Engineering Profession Act, 2000 (Act no.46 of 2000)"]
[]
[221,"Percentage based fees in line with ECSA guidelines. Percentage based on full consulting services (Stages 1 - 6). Note: ACSA reserves the right to appoint for only the stages deemed required by ACSA. ","%","%",{"v":100,"d":"R100.00"},"R"]
[]
[222,"Time based fees in line with ECSA guidelines. Fees based on full consulting services (Stages 1 - 6). Note: ACSA reserves the right to appoint for only the stages deemed required by ACSA. ","Hrs",{"v":1,"d":"1.00"},"R","R"]
[]
[null,"Professional Landscape Architect"]
[null,"Guideline of professional fees for persons registered in terms of the Landscape Architectural Profession Act, 2000 (Act no.45 of 2000)"]
[]
[223,"Percentage based fees in line with SACLAP guidelines. Percentage based on full consulting services (Stages 1 - 6). Note: ACSA reserves the right to appoint for only the stages deemed required by ACSA. ","%","%",{"v":100,"d":"R100.00"},"R"]
[]
[224,"Time based fees in line with SACLAP guidelines. Fees based on full consulting services (Stages 1 - 6). Note: ACSA reserves the right to appoint for only the stages deemed required by ACSA. ","Hrs",{"v":1,"d":"1.00"},"R","R"]
[]
[null,"Professional Fire Engineer"]
[null,"Guideline for services and processes of estimating fees for persons registered in terms of the Engineering Profession Act, 2000 (Act no.46 of 2000)"]
[]
[225,"Percentage based fees in line with ECSA guidelines. Percentage based on full consulting services (Stages 1 - 6). Note: ACSA reserves the right to appoint for only the stages deemed required by ACSA. ","%","%",{"v":100,"d":"R100.00"},"R"]
[]
[226,"Time based fees in line with ECSA guidelines. Fees based on full consulting services (Stages 1 - 6). Note: ACSA reserves the right to appoint for only the stages deemed required by ACSA. ","Hrs",{"v":1,"d":"1.00"},"R","R"]
{"$rows_empty":46}
[null,"BILL 5 - TOTAL CARRIED TO ANNUAL SUMMARY",{"$nulls":3},"R"]